[Event "Titled Tuesday Blitz March 28 Early 2023"]
[White "Vemparala, Nikash"]
[Black "Winkels, Marcel"]
[WhiteFideId "30960967"]
[BlackFideId "1003887"]
[WhiteElo "2023"]
[BlackElo "1900"]
[Result "1-0"]
[Round "11"]
[TimeControl "180+2"]
[Date "2023.03.28"]
[WhiteClock "0:00:10"]
[BlackClock "0:00:06"]

1. e4 {[%clk 0:03:00]}  c5 {[%clk 0:02:58]} 2. Nf3 {[%clk 0:02:57]}  d6 {[%clk 0:02:59]} 3. Bb5+ {[%clk 0:02:55]}  Nd7 {[%clk 0:02:58]} 4. O-O {[%clk 0:02:51]}  a6 {[%clk 0:02:57]} 5. Bd3 {[%clk 0:02:51]}  Ngf6 {[%clk 0:02:53]} 6. c3 {[%clk 0:02:50]}  e6 {[%clk 0:02:53]} 7. Bc2 {[%clk 0:02:50]}  b5 {[%clk 0:02:54]} 8. d4 {[%clk 0:02:49]}  Bb7 {[%clk 0:02:53]} 9. Re1 {[%clk 0:02:49]}  Be7 {[%clk 0:02:53]} 10. a4 {[%clk 0:02:46]}  O-O {[%clk 0:02:50]} 11. Na3 {[%clk 0:02:45]}  b4 {[%clk 0:02:40]} 12. Nc4 {[%clk 0:02:32]}  d5 {[%clk 0:02:34]} 13. exd5 {[%clk 0:02:27]}  Nxd5 {[%clk 0:02:30]} 14. Nce5 {[%clk 0:02:22]}  bxc3 {[%clk 0:02:24]} 15. bxc3 {[%clk 0:02:19]}  N7f6 {[%clk 0:01:54]} 16. Qd3 {[%clk 0:02:11]}  cxd4 {[%clk 0:01:52]} 17. Nxd4 {[%clk 0:02:00]}  Rc8 {[%clk 0:01:42]} 18. Bd2 {[%clk 0:01:47]}  g6 {[%clk 0:01:36]} 19. Rab1 {[%clk 0:01:43]}  Ba8 {[%clk 0:01:27]} 20. Red1 {[%clk 0:01:01]}  Qd6 {[%clk 0:01:17]} 21. Ndf3 {[%clk 0:00:54]}  Rfd8 {[%clk 0:01:07]} 22. c4 {[%clk 0:00:34]}  Nc7 {[%clk 0:01:02]} 23. Qe2 {[%clk 0:00:28]}  Nce8 {[%clk 0:00:41]} 24. Ba5 {[%clk 0:00:19]}  Qc5 {[%clk 0:00:32]} 25. Bxd8 {[%clk 0:00:19]}  Bxd8 {[%clk 0:00:32]} 26. Ng5 {[%clk 0:00:17]}  Bb6 {[%clk 0:00:22]} 27. Nexf7 {[%clk 0:00:14]}  Rc7 {[%clk 0:00:18]} 28. Qxe6 {[%clk 0:00:09]}  Qc6 {[%clk 0:00:15]} 29. Nh6+ {[%clk 0:00:09]}  Kg7 {[%clk 0:00:13]} 30. Qxc6 {[%clk 0:00:09]}  Bxc6 {[%clk 0:00:11]} 31. Rxb6 {[%clk 0:00:09]}  Kxh6 {[%clk 0:00:10]} 32. Ne6 {[%clk 0:00:09]}  Rc8 {[%clk 0:00:08]} 33. Rd8 {[%clk 0:00:09]}  Rxd8 {[%clk 0:00:07]} 34. Nxd8 {[%clk 0:00:10]}  Be4 {[%clk 0:00:06]} 35. Bxe4 {[%clk 0:00:10]}  Nxe4 {[%clk 0:00:06]} 36. Re6 {[%clk 0:00:10]}  N8d6 {[%clk 0:00:06]} 37. c5 {[%clk 0:00:10]} 1-0


[Site "https://www.chess.com"]

[Event "Titled Tuesday Blitz March 28 Early 2023"]
[White "Bashirli, Saadat"]
[Black "Kiseleva, Arina"]
[WhiteFideId "13429990"]
[BlackFideId "4164989"]
[WhiteElo "1408"]
[BlackElo "1756"]
[Result "1/2-1/2"]
[Round "11"]
[TimeControl "180+2"]
[Date "2023.03.28"]
[WhiteClock "0:00:03"]
[BlackClock "0:00:07"]

1. e4 {[%clk 0:03:00]}  c6 {[%clk 0:02:59]} 2. c4 {[%clk 0:02:59]}  d5 {[%clk 0:02:58]} 3. exd5 {[%clk 0:03:00]}  cxd5 {[%clk 0:02:59]} 4. cxd5 {[%clk 0:03:00]}  Nf6 {[%clk 0:02:58]} 5. Nc3 {[%clk 0:03:01]}  Nbd7 {[%clk 0:02:45]} 6. Nf3 {[%clk 0:03:01]}  Nb6 {[%clk 0:02:45]} 7. Bb5+ {[%clk 0:03:00]}  Bd7 {[%clk 0:02:45]} 8. Bxd7+ {[%clk 0:03:01]}  Qxd7 {[%clk 0:02:43]} 9. O-O {[%clk 0:02:57]}  Nfxd5 {[%clk 0:01:47]} 10. d4 {[%clk 0:02:54]}  e6 {[%clk 0:01:44]} 11. Re1 {[%clk 0:02:37]}  Nxc3 {[%clk 0:01:35]} 12. bxc3 {[%clk 0:02:38]}  Bd6 {[%clk 0:01:34]} 13. Qc2 {[%clk 0:02:31]}  Rc8 {[%clk 0:01:27]} 14. Be3 {[%clk 0:02:24]}  Nd5 {[%clk 0:01:22]} 15. Bd2 {[%clk 0:02:20]}  Qc7 {[%clk 0:01:21]} 16. Rac1 {[%clk 0:02:17]}  O-O {[%clk 0:01:15]} 17. c4 {[%clk 0:02:17]}  Nf6 {[%clk 0:01:14]} 18. Ne5 {[%clk 0:02:13]}  b6 {[%clk 0:01:08]} 19. Bf4 {[%clk 0:02:10]}  Nh5 {[%clk 0:01:03]} 20. Bg3 {[%clk 0:02:00]}  Nxg3 {[%clk 0:01:01]} 21. hxg3 {[%clk 0:02:01]}  Rfd8 {[%clk 0:00:43]} 22. Qc3 {[%clk 0:01:53]}  a5 {[%clk 0:00:33]} 23. a3 {[%clk 0:01:49]}  Bxe5 {[%clk 0:00:29]} 24. Rxe5 {[%clk 0:01:50]}  Qd6 {[%clk 0:00:29]} 25. Re4 {[%clk 0:01:48]}  f5 {[%clk 0:00:29]} 26. Rh4 {[%clk 0:01:43]}  Rc6 {[%clk 0:00:24]} 27. Qd3 {[%clk 0:01:27]}  Rdc8 {[%clk 0:00:24]} 28. Kh2 {[%clk 0:01:19]}  b5 {[%clk 0:00:16]} 29. d5 {[%clk 0:01:09]}  Rxc4 {[%clk 0:00:13]} 30. Rcxc4 {[%clk 0:01:08]}  bxc4 {[%clk 0:00:12]} 31. Rxc4 {[%clk 0:01:08]}  Rxc4 {[%clk 0:00:12]} 32. Qxc4 {[%clk 0:01:09]}  Qxd5 {[%clk 0:00:11]} 33. Qc8+ {[%clk 0:01:07]}  Kf7 {[%clk 0:00:12]} 34. Qc7+ {[%clk 0:01:07]}  Kf6 {[%clk 0:00:11]} 35. a4 {[%clk 0:01:05]}  Kg6 {[%clk 0:00:09]} 36. Qf4 {[%clk 0:01:03]}  e5 {[%clk 0:00:08]} 37. Qc1 {[%clk 0:00:56]}  Qd4 {[%clk 0:00:08]} 38. Qc6+ {[%clk 0:00:55]}  Kg5 {[%clk 0:00:05]} 39. f3 {[%clk 0:00:55]}  e4 {[%clk 0:00:05]} 40. f4+ {[%clk 0:00:46]}  Kh5 {[%clk 0:00:05]} 41. Qe6 {[%clk 0:00:43]}  g6 {[%clk 0:00:04]} 42. Qf7 {[%clk 0:00:42]}  h6 {[%clk 0:00:04]} 43. Qe8 {[%clk 0:00:42]}  e3 {[%clk 0:00:04]} 44. Kh3 {[%clk 0:00:39]}  Qd6 {[%clk 0:00:02]} 45. Qxe3 {[%clk 0:00:38]}  g5 {[%clk 0:00:01]} 46. fxg5 {[%clk 0:00:35]}  hxg5 {[%clk 0:00:02]} 47. Kh2 {[%clk 0:00:34]}  g4 {[%clk 0:00:02]} 48. Qf2 {[%clk 0:00:31]}  Kg6 {[%clk 0:00:02]} 49. Qf4 {[%clk 0:00:27]}  Qb4 {[%clk 0:00:02]} 50. Qxb4 {[%clk 0:00:09]}  axb4 {[%clk 0:00:03]} 51. a5 {[%clk 0:00:10]}  b3 {[%clk 0:00:04]} 52. a6 {[%clk 0:00:11]}  b2 {[%clk 0:00:05]} 53. a7 {[%clk 0:00:12]}  b1=Q {[%clk 0:00:05]} 54. a8=Q {[%clk 0:00:13]}  Qe4 {[%clk 0:00:05]} 55. Qa6+ {[%clk 0:00:12]}  Kg7 {[%clk 0:00:04]} 56. Qa7+ {[%clk 0:00:11]}  Kg6 {[%clk 0:00:05]} 57. Qa6+ {[%clk 0:00:11]}  Kg7 {[%clk 0:00:05]} 58. Qa1+ {[%clk 0:00:11]}  Kg6 {[%clk 0:00:05]} 59. Qc1 {[%clk 0:00:11]}  Kg7 {[%clk 0:00:04]} 60. Qc3+ {[%clk 0:00:11]}  Kg6 {[%clk 0:00:04]} 61. Qc7 {[%clk 0:00:11]}  Qd5 {[%clk 0:00:04]} 62. Qc8 {[%clk 0:00:10]}  Kf6 {[%clk 0:00:02]} 63. Qf8+ {[%clk 0:00:10]}  Kg6 {[%clk 0:00:03]} 64. Qe8+ {[%clk 0:00:10]}  Kf6 {[%clk 0:00:03]} 65. Qh8+ {[%clk 0:00:10]}  Kg6 {[%clk 0:00:03]} 66. Qh4 {[%clk 0:00:10]}  Qe5 {[%clk 0:00:02]} 67. Qd8 {[%clk 0:00:08]}  Qf6 {[%clk 0:00:02]} 68. Qc8 {[%clk 0:00:02]}  Qg7 {[%clk 0:00:01]} 69. Qc6+ {[%clk 0:00:02]}  Qf6 {[%clk 0:00:02]} 70. Qxf6+ {[%clk 0:00:02]}  Kxf6 {[%clk 0:00:02]} 71. Kg1 {[%clk 0:00:03]}  Ke5 {[%clk 0:00:03]} 72. Kf2 {[%clk 0:00:04]}  Kd4 {[%clk 0:00:03]} 73. Ke2 {[%clk 0:00:04]}  Ke4 {[%clk 0:00:04]} 74. Kd2 {[%clk 0:00:03]}  f4 {[%clk 0:00:04]} 75. gxf4 {[%clk 0:00:03]}  Kxf4 {[%clk 0:00:05]} 76. Ke2 {[%clk 0:00:03]}  Kg3 {[%clk 0:00:05]} 77. Kf1 {[%clk 0:00:04]}  Kh2 {[%clk 0:00:05]} 78. Kf2 {[%clk 0:00:03]}  Kh1 {[%clk 0:00:05]} 79. Kg3 {[%clk 0:00:03]}  Kg1 {[%clk 0:00:06]} 80. Kxg4 {[%clk 0:00:03]}  Kxg2 {[%clk 0:00:07]} 1/2-1/2


[Site "https://www.chess.com"]

[Event "Titled Tuesday Blitz March 28 Early 2023"]
[White "Larina, Maria"]
[Black "Acikel, Mert"]
[WhiteFideId "24113182"]
[BlackFideId "12956465"]
[WhiteElo "1848"]
[BlackElo "2097"]
[Result "0-1"]
[Round "11"]
[TimeControl "180+2"]
[Date "2023.03.28"]
[WhiteClock "0:00:03"]
[BlackClock "0:00:09"]

1. e4 {[%clk 0:03:00]}  e5 {[%clk 0:03:00]} 2. Nf3 {[%clk 0:03:00]}  Nc6 {[%clk 0:03:00]} 3. Nc3 {[%clk 0:03:00]}  Nf6 {[%clk 0:02:59]} 4. Bb5 {[%clk 0:03:00]}  Bb4 {[%clk 0:02:58]} 5. O-O {[%clk 0:02:59]}  d6 {[%clk 0:02:57]} 6. d3 {[%clk 0:02:58]}  O-O {[%clk 0:02:55]} 7. Ne2 {[%clk 0:02:57]}  Ne7 {[%clk 0:02:52]} 8. c3 {[%clk 0:02:55]}  Ba5 {[%clk 0:02:50]} 9. Ng3 {[%clk 0:02:55]}  Ng6 {[%clk 0:02:46]} 10. d4 {[%clk 0:02:44]}  c6 {[%clk 0:02:46]} 11. Ba4 {[%clk 0:02:43]}  h6 {[%clk 0:02:41]} 12. Bc2 {[%clk 0:02:37]}  Re8 {[%clk 0:02:40]} 13. a4 {[%clk 0:02:27]}  Bc7 {[%clk 0:02:37]} 14. Re1 {[%clk 0:02:19]}  d5 {[%clk 0:02:29]} 15. exd5 {[%clk 0:02:05]}  Nxd5 {[%clk 0:02:28]} 16. Bxg6 {[%clk 0:01:51]}  fxg6 {[%clk 0:02:28]} 17. Nxe5 {[%clk 0:01:48]}  Qf6 {[%clk 0:02:21]} 18. c4 {[%clk 0:01:22]}  Nf4 {[%clk 0:02:10]} 19. Ne4 {[%clk 0:01:20]}  Qf5 {[%clk 0:02:02]} 20. Qf3 {[%clk 0:00:55]}  Ne6 {[%clk 0:01:27]} 21. Qc3 {[%clk 0:00:22]}  Nxd4 {[%clk 0:01:16]} 22. Qxd4 {[%clk 0:00:20]}  Bxe5 {[%clk 0:01:15]} 23. Qd3 {[%clk 0:00:16]}  Bd7 {[%clk 0:01:10]} 24. g3 {[%clk 0:00:15]}  Rad8 {[%clk 0:01:09]} 25. Qe2 {[%clk 0:00:13]}  Bd4 {[%clk 0:01:03]} 26. Qc2 {[%clk 0:00:11]}  Bxf2+ {[%clk 0:00:58]} 27. Qxf2 {[%clk 0:00:10]}  Rxe4 {[%clk 0:00:59]} 28. Rxe4 {[%clk 0:00:10]}  Qxe4 {[%clk 0:00:59]} 29. Be3 {[%clk 0:00:09]}  Rf8 {[%clk 0:00:56]} 30. Qd2 {[%clk 0:00:08]}  Bh3 {[%clk 0:00:43]} 31. Re1 {[%clk 0:00:07]}  Qxc4 {[%clk 0:00:40]} 32. Qd1 {[%clk 0:00:05]}  Kh7 {[%clk 0:00:28]} 33. Bf4 {[%clk 0:00:05]}  Rf5 {[%clk 0:00:18]} 34. Be3 {[%clk 0:00:04]}  Rd5 {[%clk 0:00:12]} 35. Qe2 {[%clk 0:00:02]}  Qxe2 {[%clk 0:00:08]} 36. Rxe2 {[%clk 0:00:03]}  Rd1+ {[%clk 0:00:09]} 37. Kf2 {[%clk 0:00:03]}  Rf1# {[%clk 0:00:09]} 0-1


[Site "https://www.chess.com"]

[Event "Titled Tuesday Blitz March 28 Early 2023"]
[White "Kornyukov, Alexey"]
[Black "Kriti Mayur Patel"]
[WhiteFideId "4150457"]
[BlackFideId "35061780"]
[WhiteElo "2352"]
[BlackElo "1306"]
[Result "1-0"]
[Round "11"]
[TimeControl "180+2"]
[Date "2023.03.28"]
[WhiteClock "0:01:37"]
[BlackClock "0:00:15"]

1. e4 {[%clk 0:03:00]}  e5 {[%clk 0:02:56]} 2. Nf3 {[%clk 0:03:00]}  Nc6 {[%clk 0:02:56]} 3. Bc4 {[%clk 0:02:59]}  Nf6 {[%clk 0:02:56]} 4. O-O {[%clk 0:02:58]}  Bc5 {[%clk 0:02:53]} 5. d4 {[%clk 0:02:56]}  exd4 {[%clk 0:02:38]} 6. e5 {[%clk 0:02:49]}  d5 {[%clk 0:02:38]} 7. exf6 {[%clk 0:02:49]}  dxc4 {[%clk 0:02:37]} 8. Re1+ {[%clk 0:02:47]}  Be6 {[%clk 0:02:36]} 9. fxg7 {[%clk 0:02:47]}  Rg8 {[%clk 0:02:36]} 10. Ng5 {[%clk 0:02:47]}  Qf6 {[%clk 0:02:22]} 11. Nxe6 {[%clk 0:02:46]}  fxe6 {[%clk 0:02:21]} 12. Qh5+ {[%clk 0:02:45]}  Kd7 {[%clk 0:02:12]} 13. Qxc5 {[%clk 0:02:42]}  Rxg7 {[%clk 0:02:12]} 14. Qxc4 {[%clk 0:02:40]}  Rag8 {[%clk 0:02:10]} 15. g3 {[%clk 0:02:37]}  h5 {[%clk 0:02:03]} 16. Nd2 {[%clk 0:02:27]}  h4 {[%clk 0:02:01]} 17. Ne4 {[%clk 0:02:25]}  Qf3 {[%clk 0:01:43]} 18. Qxe6+ {[%clk 0:02:11]}  Kd8 {[%clk 0:01:13]} 19. Bg5+ {[%clk 0:02:01]}  Ne7 {[%clk 0:01:00]} 20. Nf6 {[%clk 0:01:42]}  hxg3 {[%clk 0:00:15]} 21. Qd7# {[%clk 0:01:37]} 1-0


[Site "https://www.chess.com"]

[Event "Titled Tuesday Blitz March 28 Early 2023"]
[White "Prado, Alexandra"]
[Black "Chemin, Justo Reinaldo"]
[WhiteFideId "3301346"]
[BlackFideId "2101580"]
[WhiteElo "1759"]
[BlackElo "1940"]
[Result "0-1"]
[Round "11"]
[TimeControl "180+2"]
[Date "2023.03.28"]
[WhiteClock "0:00:03"]
[BlackClock "0:00:24"]

1. e4 {[%clk 0:02:57]}  e5 {[%clk 0:02:59]} 2. Nf3 {[%clk 0:02:37]}  Nc6 {[%clk 0:02:58]} 3. d4 {[%clk 0:02:33]}  exd4 {[%clk 0:02:58]} 4. Nxd4 {[%clk 0:02:34]}  Bb4+ {[%clk 0:02:57]} 5. c3 {[%clk 0:02:26]}  Bc5 {[%clk 0:02:57]} 6. Be3 {[%clk 0:02:02]}  Qf6 {[%clk 0:02:51]} 7. Bc4 {[%clk 0:01:47]}  Nge7 {[%clk 0:02:45]} 8. O-O {[%clk 0:01:46]}  Bb6 {[%clk 0:02:40]} 9. Na3 {[%clk 0:01:28]}  O-O {[%clk 0:02:23]} 10. f4 {[%clk 0:01:21]}  d6 {[%clk 0:02:14]} 11. Nac2 {[%clk 0:01:07]}  Nxd4 {[%clk 0:01:50]} 12. cxd4 {[%clk 0:00:57]}  d5 {[%clk 0:01:43]} 13. e5 {[%clk 0:00:52]}  Qc6 {[%clk 0:01:35]} 14. Bd3 {[%clk 0:00:44]}  Bf5 {[%clk 0:01:34]} 15. Rc1 {[%clk 0:00:40]}  Qg6 {[%clk 0:01:28]} 16. Bxf5 {[%clk 0:00:26]}  Nxf5 {[%clk 0:01:28]} 17. Bf2 {[%clk 0:00:20]}  h5 {[%clk 0:01:22]} 18. Qf3 {[%clk 0:00:19]}  c6 {[%clk 0:01:15]} 19. a4 {[%clk 0:00:17]}  Rac8 {[%clk 0:01:12]} 20. b4 {[%clk 0:00:18]}  a5 {[%clk 0:01:00]} 21. bxa5 {[%clk 0:00:16]}  Bxa5 {[%clk 0:00:59]} 22. Rfd1 {[%clk 0:00:15]}  Qg4 {[%clk 0:00:53]} 23. Qxg4 {[%clk 0:00:13]}  hxg4 {[%clk 0:00:52]} 24. Be1 {[%clk 0:00:11]}  Bxe1 {[%clk 0:00:46]} 25. Rxe1 {[%clk 0:00:11]}  Ra8 {[%clk 0:00:46]} 26. Ra1 {[%clk 0:00:11]}  Rfe8 {[%clk 0:00:43]} 27. Reb1 {[%clk 0:00:11]}  Ra7 {[%clk 0:00:42]} 28. Kf2 {[%clk 0:00:11]}  Rea8 {[%clk 0:00:41]} 29. a5 {[%clk 0:00:11]}  Kf8 {[%clk 0:00:38]} 30. Ne3 {[%clk 0:00:09]}  Nxd4 {[%clk 0:00:34]} 31. Nxg4 {[%clk 0:00:10]}  Nb5 {[%clk 0:00:29]} 32. Ne3 {[%clk 0:00:07]}  Rxa5 {[%clk 0:00:28]} 33. Rxa5 {[%clk 0:00:06]}  Rxa5 {[%clk 0:00:28]} 34. h4 {[%clk 0:00:04]}  Ra2+ {[%clk 0:00:28]} 35. Kg3 {[%clk 0:00:03]}  d4 {[%clk 0:00:25]} 36. Nc4 {[%clk 0:00:03]}  d3 {[%clk 0:00:24]} 0-1


[Site "https://www.chess.com"]

[Event "Titled Tuesday Blitz March 28 Early 2023"]
[White "Clawitter, Craig"]
[Black "Necula, Iulian"]
[WhiteFideId "2023105"]
[BlackFideId "1232380"]
[WhiteElo "2213"]
[BlackElo "1790"]
[Result "1-0"]
[Round "11"]
[TimeControl "180+2"]
[Date "2023.03.28"]
[WhiteClock "0:01:22"]
[BlackClock "0:00:47"]

1. e4 {[%clk 0:02:57]}  d6 {[%clk 0:03:00]} 2. d4 {[%clk 0:02:57]}  Nf6 {[%clk 0:03:01]} 3. Nc3 {[%clk 0:02:57]}  e5 {[%clk 0:03:01]} 4. Nf3 {[%clk 0:02:55]}  Nbd7 {[%clk 0:03:01]} 5. Be3 {[%clk 0:02:53]}  Be7 {[%clk 0:03:01]} 6. Qd2 {[%clk 0:02:51]}  h6 {[%clk 0:03:00]} 7. h3 {[%clk 0:02:51]}  c6 {[%clk 0:03:00]} 8. a4 {[%clk 0:02:50]}  Qc7 {[%clk 0:03:00]} 9. g4 {[%clk 0:02:50]}  Nf8 {[%clk 0:02:53]} 10. Bg2 {[%clk 0:02:47]}  Ng6 {[%clk 0:02:52]} 11. O-O {[%clk 0:02:45]}  a5 {[%clk 0:02:31]} 12. Rad1 {[%clk 0:02:31]}  O-O {[%clk 0:02:04]} 13. g5 {[%clk 0:02:29]}  hxg5 {[%clk 0:01:57]} 14. Nxg5 {[%clk 0:02:29]}  Nh5 {[%clk 0:01:55]} 15. Ne2 {[%clk 0:02:12]}  exd4 {[%clk 0:01:54]} 16. Qxd4 {[%clk 0:02:06]}  Bf6 {[%clk 0:01:49]} 17. Qd3 {[%clk 0:01:59]}  Bxb2 {[%clk 0:01:19]} 18. f4 {[%clk 0:01:58]}  d5 {[%clk 0:01:10]} 19. e5 {[%clk 0:01:31]}  Rd8 {[%clk 0:00:52]} 20. Bf3 {[%clk 0:01:25]}  d4 {[%clk 0:00:49]} 21. Bxh5 {[%clk 0:01:23]}  dxe3 {[%clk 0:00:48]} 22. Qxd8+ {[%clk 0:01:23]}  Qxd8 {[%clk 0:00:48]} 23. Rxd8+ {[%clk 0:01:23]}  Nf8 {[%clk 0:00:47]} 24. Bxf7+ {[%clk 0:01:22]} 1-0


[Site "https://www.chess.com"]

[Event "Titled Tuesday Blitz March 28 Early 2023"]
[White "Sanchez, Robert"]
[Black "Slayyy_200"]
[WhiteFideId "2034360"]
[WhiteElo "2106"]
[BlackElo "2073"]
[Result "0-1"]
[Round "11"]
[TimeControl "180+2"]
[Date "2023.03.28"]
[WhiteClock "0:02:55"]
[BlackClock "0:02:27"]

1. e4 {[%clk 0:03:00]}  c5 {[%clk 0:02:53]} 2. Nf3 {[%clk 0:03:00]}  Nc6 {[%clk 0:02:50]} 3. d4 {[%clk 0:03:00]}  cxd4 {[%clk 0:02:50]} 4. Nxd4 {[%clk 0:03:01]}  Nf6 {[%clk 0:02:50]} 5. Nc3 {[%clk 0:03:01]}  e5 {[%clk 0:02:49]} 6. Ndb5 {[%clk 0:03:01]}  d6 {[%clk 0:02:46]} 7. Bg5 {[%clk 0:03:01]}  a6 {[%clk 0:02:46]} 8. Bxf6 {[%clk 0:03:01]}  gxf6 {[%clk 0:02:45]} 9. Na3 {[%clk 0:03:01]}  b5 {[%clk 0:02:45]} 10. Nd5 {[%clk 0:03:01]}  f5 {[%clk 0:02:44]} 11. Bd3 {[%clk 0:02:59]}  Be6 {[%clk 0:02:43]} 12. c4 {[%clk 0:02:59]}  b4 {[%clk 0:02:41]} 13. Nc2 {[%clk 0:02:59]}  a5 {[%clk 0:02:41]} 14. exf5 {[%clk 0:02:59]}  Bxd5 {[%clk 0:02:31]} 15. cxd5 {[%clk 0:02:55]}  Ne7 {[%clk 0:02:27]} 0-1